fUST/lending_fUST_20250829
["ID","MTS","AMOUNT","RATE_DAILY","PERIOD"]
[381955278,1756450239014,-1000.0,0.00020521,2]
[381955279,1756450239024,-1000.0,0.00020521,2]
[381955280,1756450239034,-511.5466903,0.00020521,2]
[381955282,1756450239046,-1000.0,0.00020521,2]
[381955284,1756450239056,-1000.0,0.00020521,2]
[381955286,1756450239065,-1000.0,0.00020521,2]
[381955288,1756450239075,-1006.09847702,0.00020521,2]
[381955290,1756450239085,-1000.0,0.00020521,2]
[381955292,1756450239094,-503.83489608,0.00020521,2]
[381955294,1756450239104,-760.05824336,0.00020564,2]
[381955296,1756450239115,-2618.2481025,0.00020566,2]
[381955298,1756450239124,-1805.47773917,0.00020621,2]
[381955300,1756450239135,-246.88366527,0.00020765,2]
[381955302,1756450239145,-857.90562852,0.00020853,2]
[381955304,1756450239154,-151.0,0.000209,3]
[381955306,1756450239164,-756.76,0.00020927,3]
[381955308,1756450239174,-378.38,0.00020927,3]
[381955310,1756450239184,-189.19,0.00020927,3]
[381955312,1756450239193,-935899.57225662,0.00020929,2]
[381955314,1756450239206,-25716.11399871,0.00020929,2]
[381955649,1756450242926,-250.0,0.00020401,2]
[381955650,1756450242937,-250.0,0.00020401,2]
[381955651,1756450242947,-250.0,0.00020401,2]
[381955652,1756450242957,-250.0,0.00020401,2]
[381955653,1756450242970,-250.0,0.00020401,2]
[381955654,1756450242981,-250.0,0.00020401,2]
[381955655,1756450242991,-2220.82374467,0.00020929,2]
[381955656,1756450243000,-500.0,0.00020936,2]
[381955657,1756450243010,-151.0,0.00020936,2]
[381955658,1756450243020,-152.72723652,0.00020936,2]
[381955659,1756450243030,-286.24612131,0.00020936,2]
[381955660,1756450243040,-151.0,0.00020936,2]
[381955661,1756450243050,-151.0,0.00020936,2]
[381955662,1756450243061,-151.0,0.00020936,2]
[381955663,1756450243071,-151.0,0.00020936,2]
[381955664,1756450243080,-151.0,0.00020936,2]
[381955665,1756450243090,-151.0,0.00020936,2]
[381955666,1756450243100,-151.0,0.00020936,2]
[381955667,1756450243112,-102.04049692,0.00020936,2]
[381955677,1756450245606,-48.95950308,0.00020936,2]
[381955678,1756450245616,-151.0,0.00020936,2]
[381955680,1756450245626,-151.0,0.00020936,2]
[381955682,1756450245635,-151.0,0.00020936,2]
[381955684,1756450245644,-151.0,0.00020936,2]
[381955686,1756450245653,-151.0,0.00020936,2]
[381955687,1756450245662,-27179.34556037,0.00020937,2]
[381955688,1756450245672,-567.59,0.00020939,3]
[381955689,1756450245681,-490452.39,0.00020939,2]
[381955690,1756450245691,-370000.0,0.00020949,2]
[381955691,1756450245701,-417.15,0.00020953,3]
[381955692,1756450245710,-501.16424268,0.00020973,2]
[381955693,1756450245719,-310.28792753,0.00020973,2]
[381955694,1756450245730,-500.41653827,0.00020973,2]
[381955696,1756450245739,-646.32444962,0.00020973,2]
[381955698,1756450245748,-500.0,0.00020973,2]
[381955699,1756450245758,-501.93303177,0.00020973,2]
[381955701,1756450245768,-509.50373947,0.00020973,2]
[381955702,1756450245778,-518.05799485,0.00020973,2]
[381955703,1756450245787,-500.0,0.00020973,2]
[381955704,1756450245797,-502.26665287,0.00020973,2]
[381955705,1756450245807,-506.80487785,0.00020973,2]
[381955706,1756450245816,-501.05211284,0.00020973,2]
[381955707,1756450245825,-500.0,0.00020973,2]
[381955708,1756450245835,-500.0,0.00020973,2]
[381955709,1756450245844,-500.0,0.00020973,2]
[381955710,1756450245855,-500.0,0.00020973,2]
[381955711,1756450245864,-501.38259314,0.00020973,2]
[381955712,1756450245874,-500.0,0.00020973,2]
[381955714,1756450245883,-501.95728844,0.00020973,2]
[381955716,1756450245893,-500.0,0.00020973,2]
[381955718,1756450245902,-501.41096466,0.00020973,2]
[381955719,1756450245912,-500.0,0.00020973,2]
[381955720,1756450245921,-500.0,0.00020973,2]
[381955721,1756450245930,-500.0,0.00020973,2]
[381955722,1756450245940,-500.0,0.00020973,2]
[381955723,1756450245950,-501.46911605,0.00020973,2]
[381955724,1756450245961,-500.0,0.00020973,2]
[381955725,1756450245974,-501.29449077,0.00020973,2]
[381955726,1756450245984,-217.66320664,0.00020973,2]
[381955727,1756450245993,-500.0,0.00020973,2]
[381955729,1756450246002,-160.0,0.00021,3]
[381955730,1756450246014,-160.0,0.00021,4]
[381955731,1756450246024,-160.0,0.00021,3]
[381955732,1756450246038,-162.12278592,0.00021,4]
[381955733,1756450246048,-298.0,0.00021026,2]
[381955734,1756450246059,-151.0,0.00021035,2]
[381955735,1756450246068,-151.0,0.00021035,2]
[381955736,1756450246078,-151.0,0.00021035,2]
[381955737,1756450246088,-200.56674716,0.00021035,2]
[381955738,1756450246098,-151.0,0.00021035,2]
[381955739,1756450246109,-152.00669618,0.00021035,2]
[381955740,1756450246119,-151.30882845,0.00021035,2]
[381955741,1756450246129,-1026.17971562,0.00021068,2]
[381955742,1756450246138,-1500.0,0.00021068,2]
[381955743,1756450246148,-1507.65629494,0.00021068,2]
[381955744,1756450246158,-1500.0,0.00021068,2]
[381955745,1756450246168,-1500.0,0.00021068,2]
[381955746,1756450246178,-1500.0,0.00021068,2]
[381955747,1756450246187,-1500.0,0.00021068,2]
[381955748,1756450246198,-9651.7364202,0.00021079,2]
[381955749,1756450246208,-3194.0032336,0.00021079,2]
[381955750,1756450246217,-160.0,0.00021079,2]
[381955751,1756450246227,-3829.43,0.0002108,2]
[381955752,1756450246236,-3027.336353,0.00021081,2]
[381955753,1756450246245,-1840.69072985,0.00021123,3]
[381955754,1756450246255,-56293.2328853,0.00021135,2]
[381955755,1756450246264,-857.90562848,0.00021152,2]
[381955756,1756450246274,-587.0,0.00021169,2]
[381955757,1756450246284,-260.89381538,0.00021173,2]
[381955758,1756450246294,-501.40282483,0.00021173,2]
[381955759,1756450246303,-500.0,0.00021173,2]
[381955760,1756450246313,-500.0,0.00021173,2]
[381955761,1756450246322,-339.23308468,0.00021173,2]
[381955762,1756450246332,-500.0,0.00021173,2]
[381955763,1756450246342,-500.0,0.00021173,2]
[381955764,1756450246353,-500.0,0.00021173,2]
[381955765,1756450246363,-520.46407251,0.00021173,2]
[381955766,1756450246372,-500.0,0.00021173,2]
[381955767,1756450246382,-500.0,0.00021173,2]
[381955768,1756450246391,-501.51929653,0.00021173,2]
[381955769,1756450246401,-500.0,0.00021173,2]
[381955770,1756450246410,-500.0,0.00021173,2]
[381955771,1756450246420,-500.0,0.00021173,2]
[381955772,1756450246430,-503.0648062,0.00021173,2]
[381955773,1756450246440,-500.0,0.00021173,2]
[381955774,1756450246450,-500.0,0.00021173,2]
[381955775,1756450246459,-587.34291779,0.00021173,2]
[381955776,1756450246469,-500.0,0.00021173,2]
[381955777,1756450246478,-500.0,0.00021173,2]
[381955778,1756450246488,-151.0,0.00021173,2]
[381955779,1756450246497,-151.0,0.00021173,2]
[381955780,1756450246507,-236.755286,0.00021173,2]
[381955781,1756450246516,-151.0,0.00021173,2]
[381955782,1756450246526,-151.0,0.00021173,2]
[381955783,1756450246536,-151.0,0.00021173,2]
[381955784,1756450246545,-151.0,0.00021173,2]
[381955785,1756450246555,-151.0,0.00021173,2]
[381955786,1756450246565,-151.0,0.00021173,2]
[381955787,1756450246574,-151.0,0.00021173,2]
[381955788,1756450246584,-227.787789,0.00021173,2]
[381955789,1756450246594,-151.0,0.00021173,2]
[381955790,1756450246605,-151.0,0.00021173,2]
[381955791,1756450246614,-5000.0,0.00021198,2]
[381955792,1756450246624,-782.29356018,0.00021199,2]
[381955793,1756450246633,-727.84339864,0.00021199,2]
[381955794,1756450246643,-2908.46222097,0.00021199,2]
[381955795,1756450246653,-983.73296265,0.00021199,2]
[381955796,1756450246662,-3930.99691873,0.00021199,2]
[381955797,1756450246672,-379.95805812,0.000212,2]
[381955798,1756450246681,-500.0,0.0002121,2]
[381955799,1756450246691,-153.71832537,0.0002121,2]
[381955800,1756450246700,-151.0,0.00021263,2]
[381955801,1756450246709,-151.0,0.00021263,2]
[381955802,1756450246719,-151.0,0.00021263,2]
[381955803,1756450246728,-151.0,0.00021263,2]
[381955804,1756450246820,-151.0,0.00021263,2]
[381955805,1756450246830,-151.0,0.00021263,2]
[381955806,1756450246839,-151.0,0.00021263,2]
[381955807,1756450246848,-153.139486,0.00021263,2]
[381955808,1756450246858,-151.0,0.00021263,2]
[381955809,1756450246868,-151.0,0.00021263,2]
[381955810,1756450246877,-151.0,0.00021263,2]
[381955811,1756450246887,-151.0,0.00021263,2]
[381955812,1756450246896,-151.0,0.00021263,2]
[381955813,1756450246905,-100000.0,0.00021263,2]
[381955814,1756450246915,-510.40924109,0.00021273,2]
[381955815,1756450246924,-500.0,0.00021273,2]
[381955816,1756450246934,-500.0,0.00021273,2]
[381955817,1756450246943,-500.0,0.00021273,2]
[381955818,1756450246953,-187.30231734,0.00021273,2]
[381955819,1756450246967,-223.07154621,0.00021273,2]
[381955820,1756450246977,-500.0,0.00021273,2]
[381955821,1756450246986,-151.0,0.00021309,2]
[381955822,1756450246995,-250.89996808,0.00021309,2]
[381955823,1756450247006,-151.0,0.00021309,2]
[381955824,1756450247015,-186.70227275,0.00021309,2]
[381955825,1756450247025,-6000.0,0.00021388,2]
[381955826,1756450247035,-4906.19071164,0.00021389,2]
[381955827,1756450247046,-857.90562848,0.00021451,2]
[381955828,1756450247056,-500.0,0.00021484,2]
[381955829,1756450247067,-12616.66478477,0.000215,2]
[381955830,1756450247076,-1000.0,0.00021521,2]
[381955831,1756450247086,-622.56199784,0.00021521,2]
[381955832,1756450247095,-1000.0,0.00021521,2]
[381955833,1756450247104,-500.14150593,0.00021521,2]
[381955834,1756450247114,-1000.0,0.00021521,2]
[381955835,1756450247123,-502.12918669,0.00021521,2]
[381955836,1756450247133,-1000.0,0.00021521,2]
[381955837,1756450247142,-503.53147026,0.00021521,2]
[381955838,1756450247152,-515.97914192,0.00021521,2]
[381955839,1756450247161,-1000.0,0.00021521,2]
[381955840,1756450247171,-198.5426892,0.00021583,2]
[381955841,1756450247181,-198.65074793,0.00021583,2]
[381955842,1756450247191,-7000.0,0.00021598,2]
[381955843,1756450247201,-2000.0,0.00021616,2]
[381955844,1756450247211,-2000.0,0.00021616,2]
[381955845,1756450247220,-2000.0,0.00021616,2]
[381955846,1756450247230,-2000.0,0.00021616,2]
[381955847,1756450247239,-166.58792084,0.00021616,2]
[381955848,1756450247249,-260.0,0.00021627,2]
[381955849,1756450247258,-613.03801579,0.000217,2]
[381955850,1756450247268,-1000.0,0.00021721,2]
[381955851,1756450247277,-1000.0,0.00021721,2]
[381955852,1756450247287,-1000.0,0.00021721,2]
[381955853,1756450247296,-760.70479331,0.00021721,2]
[381955854,1756450247305,-1002.17233477,0.00021721,2]
[381955855,1756450247315,-1000.0,0.00021721,2]
[381955856,1756450247324,-1000.0,0.00021721,2]
[381955857,1756450247334,-1000.0,0.00021721,2]
[381955858,1756450247343,-501.58549658,0.00021721,2]
[381955859,1756450247353,-1000.0,0.00021721,2]
[381955860,1756450247363,-501.32454874,0.00021721,2]
[381955861,1756450247373,-1000.0,0.00021721,2]
[381955862,1756450247382,-857.90562848,0.0002175,2]
[381955863,1756450247391,-500.0,0.00021758,2]
[381955864,1756450247400,-194.72792766,0.0002177,2]
[381955865,1756450247409,-2000.0,0.0002178,2]
[381955866,1756450247419,-3126.0450665,0.00021816,2]
[381955867,1756450247428,-501.59961857,0.00021821,2]
[381955868,1756450247438,-1000.0,0.00021821,2]
[381955869,1756450247447,-168.9190779,0.00021821,2]
[381955870,1756450247457,-1000.0,0.00021821,2]
[381955871,1756450247466,-8000.0,0.00021899,2]
[381955872,1756450247475,-151.0,0.00021899,2]
[381955873,1756450247485,-151.0,0.00021899,2]
[381955874,1756450247495,-38558.0969886,0.00021918,2]
[381955875,1756450247504,-612.044215,0.00021918,2]
[381955876,1756450247514,-612.044215,0.00021918,2]
[381955877,1756450247524,-612.044215,0.00021918,2]
[381955878,1756450247533,-612.044215,0.00021918,2]
[381955879,1756450247543,-612.044215,0.00021918,2]
[381955880,1756450247552,-612.044215,0.00021918,2]
[381955881,1756450247561,-612.044215,0.00021918,2]
[381955882,1756450247571,-612.044215,0.00021918,2]
[381955883,1756450247580,-150.0,0.00021918,2]
[381955884,1756450247589,-200.53074167,0.00021918,2]
[381955885,1756450247598,-152.011549,0.00021918,7]
[381955886,1756450247609,-1027.954599,0.00021918,2]
[381955887,1756450247620,-612.044215,0.00021918,7]
[381955888,1756450247629,-612.044215,0.00021918,7]
[381955889,1756450247639,-612.044215,0.00021918,7]
[381955890,1756450247648,-612.044215,0.00021918,7]
[381955891,1756450247659,-151.0,0.00021918,7]
[381955892,1756450247668,-151.0,0.00021918,7]
[381955893,1756450247677,-151.0,0.00021918,7]
[381955894,1756450247688,-151.0,0.00021918,7]
[381955895,1756450247697,-153.551946,0.00021918,7]
[381955896,1756450247706,-539.11290541,0.00021924,2]
[381955897,1756450247715,-150.0,0.00021973,2]
[381955898,1756450247725,-4833.18,0.00022,7]
[381955899,1756450247733,-1393.47,0.00022,7]
[381955900,1756450247743,-355.35352368,0.00022,2]
[381955901,1756450247752,-197.0,0.00022,2]
[381955902,1756450247762,-500.0,0.00022032,2]
[381955903,1756450247771,-857.90562848,0.00022049,2]
[381955904,1756450247781,-1022.1386741,0.00022068,2]
[381955905,1756450247790,-1509.51911981,0.00022068,2]
[381955906,1756450247800,-1500.0,0.00022068,2]
[381955907,1756450247809,-1003.03682746,0.00022068,2]
[381955908,1756450247818,-1004.418764,0.00022068,2]
[381955909,1756450247828,-192.92474915,0.000221,2]
[381955910,1756450247838,-601.9,0.000221,2]
[381955911,1756450247847,-7999.8,0.00022126,2]
[381955912,1756450247859,-417.15472785,0.00022141,2]
[381955913,1756450247868,-11358.84933845,0.00022141,2]
[381955914,1756450247878,-2217.94038552,0.0002215,2]
[381955915,1756450247887,-736.00433624,0.00022164,2]
[381955916,1756450247896,-1984.83829987,0.00022164,2]
[381955917,1756450247906,-2104.33611123,0.00022164,2]
[381955918,1756450247915,-2500.0,0.00022164,2]
[381955919,1756450247926,-151.0,0.00022168,7]
[381955920,1756450247935,-151.0,0.00022168,7]
[381955921,1756450247945,-160.0,0.00022173,7]
[381955922,1756450247956,-151.0,0.00022173,7]
[381955923,1756450247968,-151.0,0.00022173,7]
[381955924,1756450247977,-360.0,0.00022175,2]
[381955925,1756450247987,-529.77114056,0.0002218,7]
[381955926,1756450247996,-425.57542551,0.00022192,7]
[381955927,1756450248007,-216.21406313,0.000222,7]
[381955928,1756450248016,-417.15472785,0.000222,7]
[381955929,1756450248026,-160.0,0.000222,7]
[381955930,1756450248036,-1376.0520506,0.00022268,2]
[381955931,1756450248046,-1500.0,0.00022268,2]
[381955932,1756450248056,-1500.0,0.00022268,2]
[381955933,1756450248065,-645.94557468,0.00022268,2]
[381955934,1756450248075,-339.95306968,0.00022268,2]
[381955935,1756450248084,-1500.0,0.00022268,2]
[381955936,1756450248094,-1500.0,0.00022268,2]
[381955937,1756450248105,-1500.0,0.00022268,2]
[381955938,1756450248115,-168.0,0.00022293,2]
[381955939,1756450248124,-1513.52,0.00022297,3]
[381955940,1756450248134,-756.76,0.00022297,3]
[381955941,1756450248144,-378.38,0.00022297,3]
[381955942,1756450248224,-151.0,0.000223,5]
[381955943,1756450248234,-529.77114056,0.000223,3]
[381955944,1756450248244,-216.21406313,0.000223,3]
[381955945,1756450248254,-417.15472785,0.000223,3]
[381955946,1756450248263,-160.0,0.000223,3]
[381955947,1756450248273,-500.0,0.00022306,2]
[381955948,1756450248283,-163.37366008,0.00022368,2]
[381955949,1756450248293,-1500.0,0.00022368,2]
[381955950,1756450248303,-250.0,0.00022466,2]
[381955951,1756450248313,-279.06846716,0.000225,2]
[381955952,1756450248323,-151.0,0.000225,5]
[381955953,1756450248333,-165.008113,0.00022505,2]
[381955954,1756450248343,-300.0,0.00022521,2]
[381955955,1756450248353,-500.0,0.0002258,2]
[381955956,1756450248363,-5000.0,0.00022614,2]
[381955957,1756450248374,-2000.0,0.00022616,2]
[381955958,1756450248384,-168.0,0.00022687,2]
[381955959,1756450248394,-151.0,0.000227,8]
[381955960,1756450248403,-3000.0,0.00022712,2]
[381955961,1756450248413,-460.0,0.00022723,2]
[381955962,1756450248423,-12500.0,0.00022739,7]
[381955963,1756450248432,-153.846551,0.00022739,7]
[381955964,1756450248442,-151.0,0.00022816,7]
[381955965,1756450248451,-612.044215,0.00022816,7]
[381955966,1756450248461,-612.044215,0.00022816,7]
[381955967,1756450248471,-612.044215,0.00022816,7]
[381955968,1756450248480,-612.044215,0.00022816,7]
[381955969,1756450248490,-151.0,0.00022816,7]
[381955970,1756450248500,-151.0,0.00022816,7]
[381955971,1756450248509,-151.0,0.00022816,7]
[381955972,1756450248518,-2000.0,0.00022816,2]
[381955973,1756450248527,-2000.0,0.00022816,2]
[381955974,1756450248536,-2000.0,0.00022816,2]
[381955975,1756450248545,-2000.0,0.00022816,2]
[381955976,1756450248555,-866.9365323,0.00022816,2]
[381955977,1756450248564,-500.0,0.00022854,2]
[381955978,1756450248574,-4906.19071164,0.00022879,2]
[381955979,1756450248583,-151.0,0.000229,5]
[381955980,1756450248592,-173.8094442,0.000229,2]
[381955981,1756450248602,-1483.56903053,0.00022916,2]
[381955982,1756450248613,-151.0,0.00022963,7]
[381955983,1756450248622,-151.0,0.00022963,7]
[381955984,1756450248632,-12500.0,0.00022963,7]
[381955985,1756450248641,-151.0,0.00022972,7]
[381955986,1756450248650,-151.0,0.00022972,7]
[381955987,1756450248659,-12500.0,0.00022972,7]
[381955988,1756450248669,-12500.0,0.00022981,7]
[381955989,1756450248678,-12500.0,0.0002299,7]
[381955990,1756450248688,-17062.66155342,0.00023,15]
[381955991,1756450248697,-12290.90653408,0.00023,2]
[381955992,1756450248706,-151.0,0.00023,7]
[381955993,1756450248716,-425.57542551,0.00023,7]
[381955994,1756450248725,-845.57753514,0.00023,3]
[381955995,1756450248734,-160.0,0.00023,3]
[381955996,1756450248743,-160.0,0.00023,3]
[381955997,1756450248752,-217.30324474,0.00023,3]
[381955998,1756450248762,-612.044215,0.00023,7]
[381955999,1756450248771,-612.044215,0.00023,7]
[381956000,1756450248781,-612.044215,0.00023,7]
[381956001,1756450248790,-612.04420824,0.00023,7]
[381956002,1756450248800,-151.0,0.00023,7]
[381956003,1756450248810,-151.0,0.00023,7]
[381956004,1756450248819,-151.0,0.00023,7]
[381956005,1756450248829,-216.21406313,0.00023,7]
[381956006,1756450248838,-160.0,0.00023,7]
[381956007,1756450248847,-417.15472785,0.00023,7]
[381956008,1756450248858,-160.0,0.00023,3]
[381956009,1756450248871,-350.0,0.00023014,2]
[381956010,1756450248881,-197.0,0.00023014,7]
[381956011,1756450248890,-450.74586313,0.00023068,2]
[381956012,1756450248900,-647.0,0.000231,2]
[381956013,1756450248910,-823.0,0.00023103,2]
[381956014,1756450248920,-500.0,0.00023128,2]
[381956015,1756450248929,-201.93286099,0.00023139,2]
[381956016,1756450248939,-168.0,0.0002316,2]
[381956017,1756450248948,-2500.0,0.00023164,2]
[381956018,1756450248958,-168.0,0.00023237,2]
[381956019,1756450248970,-3500.0,0.0002326,2]
[381956020,1756450248980,-560.0,0.00023271,2]
[381956021,1756450248990,-168.0,0.00023286,2]
[381956022,1756450249001,-164.815228,0.00023288,2]
[381956023,1756450249010,-151.0,0.00023288,7]
[381956024,1756450249020,-151.0,0.00023288,7]
[381956025,1756450249029,-151.0,0.00023288,7]
[381956026,1756450249039,-245.0,0.00023288,7]
[381956027,1756450249049,-2500.0,0.00023364,2]
[381956028,1756450249059,-2500.0,0.00023364,2]
[381956029,1756450249069,-1504.49967332,0.00023364,2]
[381956030,1756450249078,-1003.29409815,0.00023364,2]
[381956031,1756450249089,-151.0,0.00023388,7]
[381956032,1756450249098,-151.0,0.00023388,7]
[381956033,1756450249110,-1393.47,0.000234,7]
[381956034,1756450249119,-500.0,0.00023402,2]
[381956035,1756450249130,-151.0,0.00023464,7]
[381956036,1756450249140,-151.0,0.00023464,7]
[381956037,1756450249150,-156.29,0.00023505,2]
[381956038,1756450249160,-551.10708134,0.00023562,2]
[381956039,1756450249169,-187.03883194,0.00023598,2]
[381956040,1756450249179,-500.0,0.00023676,2]
[381956041,1756450249190,-3000.0,0.00023712,2]
[381956042,1756450249200,-4000.0,0.00023808,2]
[381956043,1756450249210,-660.0,0.00023819,2]
[381956044,1756450249219,-739.0,0.00023871,2]
[381956045,1756450249230,-407.5085689,0.00023898,2]
[381956046,1756450249239,-386.0933947,0.00023898,2]
[381956047,1756450249249,-2003.73719567,0.00023912,2]
[381956048,1756450249259,-1094.97896212,0.00023912,2]
[381956049,1756450249269,-267.50793468,0.0002395,2]
[381956050,1756450249278,-954.746,0.00023973,5]
[381956051,1756450249288,-194.296,0.00023973,5]
[381956052,1756450249297,-457.02666089,0.00024,2]
[381956053,1756450249307,-3028.49742416,0.00024,30]
[381956054,1756450249316,-151.0,0.00024,5]
[381956055,1756450249326,-1705.17140275,0.00024,2]
[381956056,1756450249335,-47240.43938534,0.00024,5]
[381956057,1756450249345,-232.6790651,0.00024,7]
[381956058,1756450249355,-160.0,0.00024,7]
[381956059,1756450249365,-191.868498,0.00024,2]
[381956060,1756450249374,-845.57753514,0.00024,7]
[381956061,1756450249384,-845.57753514,0.00024,7]
[381956062,1756450249393,-160.0,0.00024,7]
[381956063,1756450249402,-160.0,0.00024,7]
[381956064,1756450249411,-217.30324474,0.00024,7]
[381956065,1756450249420,-216.21406313,0.00024,3]
[381956066,1756450249429,-3500.0,0.0002426,2]
[381956067,1756450249439,-151.0,0.000243,8]
[381956068,1756450249513,-2153.5934931,0.00024313,2]
[381956069,1756450249522,-1056.24834409,0.00024335,2]
[381956070,1756450249531,-287.00862729,0.00024356,2]
[381956071,1756450249541,-760.0,0.00024367,2]
[381956072,1756450249550,-4906.19071164,0.00024368,2]
[381956073,1756450249559,-151.0,0.00024368,7]
[381956074,1756450249568,-273.222539,0.00024368,7]
[381956075,1756450249578,-12560.7180689,0.00024378,2]
[381956076,1756450249587,-201.0,0.0002448,11]
[381956077,1756450249597,-209.40437684,0.00024508,2]
[381956078,1756450249608,-738.0,0.00024573,2]
[381956079,1756450249617,-332575.35489994,0.0002465,2]
[381956080,1756450249627,-505.62482702,0.0002465,2]
[381956081,1756450249636,-587.600179,0.0002465,2]
[381956082,1756450249646,-150.0,0.00024658,2]
[381956083,1756450249656,-150.0,0.00024658,2]
[381956084,1756450249664,-380.0,0.00024658,2]
[381956085,1756450249673,-200.0,0.00024658,15]
[381956086,1756450249683,-53567.9037571,0.00024658,2]
[381956087,1756450249693,-200.0,0.00024658,2]
[381956088,1756450249702,-151.0,0.00024658,7]
[381956089,1756450249712,-151.0,0.00024658,7]
[381956090,1756450249721,-151.0,0.00024658,7]
[381956091,1756450249731,-151.0,0.00024658,7]
[381956092,1756450249741,-151.0,0.00024658,7]
[381956093,1756450249750,-151.0,0.00024658,7]
[381956094,1756450249759,-151.0,0.00024658,2]
[381956095,1756450249768,-500.0,0.00024658,2]
[381956096,1756450249778,-646.0,0.00024667,7]
[381956097,1756450249787,-4833.18,0.000247,7]
[381956098,1756450249796,-10387.11453815,0.00024702,2]
[381956099,1756450249806,-738.0,0.00024724,7]
[381956100,1756450249815,-646.0,0.00024726,2]
[381956101,1756450249824,-10272.79092591,0.00024774,2]
[381956102,1756450249833,-738.0,0.00024779,2]
[381956103,1756450249842,-646.0,0.00024789,2]
[381956104,1756450249851,-1393.47,0.000248,7]
[381956105,1756450249861,-234.346518,0.000248,28]
[381956106,1756450249871,-13751.693589,0.000248,2]
[381956107,1756450249881,-646.0,0.00024802,7]
[381956108,1756450249892,-4000.0,0.00024808,2]
[381956109,1756450249901,-326.1956152,0.00024865,2]
[381956110,1756450249911,-294.6377317,0.00024865,2]
[381956111,1756450249920,-294.6377317,0.00024865,2]
[381956112,1756450249930,-836793.821127,0.000249,2]
[381956113,1756450249939,-738.0,0.00024908,2]
[381956114,1756450249949,-860.0,0.00024915,2]
[381956115,1756450249959,-226.46831206,0.00024932,2]
[381956116,1756450249972,-500.0,0.00024932,2]
[381956117,1756450249982,-1000.0,0.00025,30]
[381956118,1756450249992,-700.93,0.00025,5]
[381956119,1756450250003,-500.0,0.00025,7]
[381956120,1756450250013,-425.57542551,0.00025,7]
[381956121,1756450250022,-232.6790651,0.00025,7]
[381956122,1756450250031,-160.0,0.00025,7]
[381956123,1756450250042,-216.21406313,0.00025,10]
[381956124,1756450250051,-216.21406313,0.00025,10]
[381956125,1756450250061,-646.0,0.0002501,2]
[381956126,1756450250071,-480.531661,0.00025035,2]
[381956127,1756450250080,-159.0200573,0.00025035,2]
[381956128,1756450250089,-646.0,0.00025073,2]
[381956129,1756450250098,-2802.6750343,0.00025101,2]
[381956130,1756450250108,-646.0,0.00025122,2]
[381956131,1756450250117,-646.0,0.00025187,2]
[381956132,1756450250126,-646.0,0.0002519,2]
[381956133,1756450250136,-300.78409337,0.00025205,2]
[381956134,1756450250145,-250.0,0.00025205,2]
[381956135,1756450250155,-500.0,0.00025206,2]
[381956136,1756450250164,-1152.0,0.00025214,2]
[381956137,1756450250173,-646.0,0.00025215,2]
[381956138,1756450250182,-646.0,0.00025232,7]
[381956139,1756450250191,-646.0,0.00025284,2]
[381956140,1756450250201,-160.0,0.00025349,2]
[381956141,1756450250210,-845.57753514,0.00025355,2]
[381956142,1756450250219,-216.21406313,0.00025355,2]
[381956143,1756450250229,-160.0,0.00025355,2]
[381956144,1756450250239,-160.0,0.00025355,2]
[381956145,1756450250248,-160.0,0.00025355,2]
[381956146,1756450250257,-160.0,0.00025355,2]
[381956147,1756450250268,-217.30324474,0.00025355,2]
[381956148,1756450250278,-529.77114056,0.00025355,2]